fUST/lending_fUST_20240124
["ID","MTS","AMOUNT","RATE_DAILY","PERIOD"]
[312609207,1706080232498,-2746.390925,0.000275,2]
[312609208,1706080232507,-2746.390925,0.000275,2]
[312609209,1706080232516,-2746.390925,0.000275,2]
[312609210,1706080232525,-2746.390925,0.000275,2]
[312609211,1706080232534,-155.97757296,0.00027686,2]
[312609212,1706080232543,-240.23825616,0.00027686,2]
[312609213,1706080232553,-216.44724882,0.00027686,2]
[312609214,1706080232563,-151.0,0.00027797,2]
[312609215,1706080232572,-2746.390925,0.00027797,2]
[312609216,1706080232582,-2746.390925,0.00027797,2]
[312609217,1706080232591,-2183.91814678,0.00027797,2]
[312609219,1706080232603,-1576.80636582,0.00028799,2]
[312609220,1706080232612,-17822.88838233,0.000288,2]
[312609221,1706080232622,-151.0,0.000288,2]
[312609222,1706080232631,-151.0,0.000288,2]
[312609223,1706080232640,-198.0,0.000288,2]
[312609224,1706080232649,-151.0,0.000288,2]
[312609225,1706080232658,-271.114325,0.000288,2]
[312609226,1706080232668,-151.0,0.000288,2]
[312609227,1706080232677,-151.0,0.000288,2]
[312609228,1706080232687,-151.0,0.000288,2]
[312609229,1706080232696,-2746.390925,0.000288,2]
[312609231,1706080232705,-2746.390917,0.000288,2]
[312609233,1706080232714,-21805.03285875,0.000289,2]
[312609234,1706080232723,-309.47389438,0.00029,2]
[312609235,1706080232732,-1620.82236798,0.00029,2]
[312609236,1706080232743,-153.0,0.00029178,2]
[312609237,1706080232753,-153.0,0.00029178,2]
[312609238,1706080232762,-153.0,0.00029178,2]
[312609240,1706080232772,-153.0,0.00029178,2]
[312609241,1706080232782,-153.0,0.00029178,2]
[312609243,1706080232791,-153.0,0.00029178,2]
[312609245,1706080232801,-153.0,0.00029178,2]
[312609246,1706080232811,-153.0,0.00029178,2]
[312609247,1706080232821,-153.0,0.00029178,2]
[312609248,1706080232831,-154.5721256,0.00029315,2]
[312609249,1706080232841,-153.0,0.00029315,2]
[312609250,1706080232850,-249.0010654,0.00029315,2]
[312609251,1706080232860,-153.0,0.00029315,2]
[312609252,1706080232872,-153.0,0.00029315,2]
[312609253,1706080232881,-153.0,0.00029315,2]
[312609254,1706080232890,-199.2894744,0.00029315,2]
[312609255,1706080232900,-153.0,0.00029315,2]
[312609256,1706080232910,-153.0,0.00029315,2]
[312609257,1706080232919,-199.2894744,0.00029315,2]
[312609258,1706080232928,-153.0,0.00029315,2]
[312609259,1706080232937,-153.0,0.00029315,2]
[312609260,1706080232948,-153.0,0.00029315,2]
[312609261,1706080232957,-153.0,0.00029315,2]
[312609262,1706080232966,-153.0,0.00029315,2]
[312609263,1706080232975,-153.0,0.00029315,2]
[312609264,1706080232984,-153.0,0.00029315,2]
[312609265,1706080232993,-153.0,0.00029315,2]
[312609266,1706080233002,-199.2894744,0.00029315,2]
[312609267,1706080233012,-199.2894744,0.00029315,2]
[312609268,1706080233021,-153.0,0.00029315,2]
[312609269,1706080233030,-153.0,0.00029315,2]
[312609270,1706080233040,-153.0,0.00029315,2]
[312609271,1706080233049,-153.0,0.00029315,2]
[312609272,1706080233060,-199.2894744,0.00029315,2]
[312609273,1706080233070,-153.0,0.00029315,2]
[312609274,1706080233079,-153.0,0.00029315,2]
[312609275,1706080233089,-153.0,0.00029315,2]
[312609276,1706080233099,-153.0,0.00029315,2]
[312609277,1706080233108,-397.9294265,0.00029315,2]
[312609278,1706080233117,-264.7674032,0.00029315,2]
[312609279,1706080233127,-153.0,0.00029315,2]
[312609280,1706080233136,-153.0,0.00029315,2]
[312609281,1706080233145,-153.0,0.00029315,2]
[312609282,1706080233155,-153.0,0.00029315,2]
[312609283,1706080233165,-153.7874584,0.00029315,2]
[312609284,1706080233174,-199.1966855,0.00029315,2]
[312609285,1706080233184,-153.0,0.00029315,2]
[312609286,1706080233195,-153.0,0.00029315,2]
[312609287,1706080233205,-153.0,0.00029315,2]
[312609288,1706080233214,-153.0,0.00029315,2]
[312609289,1706080233224,-200.35,0.000295,4]
[312609290,1706080233234,-153.0,0.00029589,2]
[312609291,1706080233244,-153.0,0.00029589,2]
[312609292,1706080233253,-153.0,0.00029589,2]
[312609293,1706080233263,-153.0,0.00029589,2]
[312609294,1706080233273,-172.67487999,0.000299,2]
[312609295,1706080233283,-1000.0,0.00029997,3]
[312609296,1706080233292,-1000.0,0.00029997,3]
[312609297,1706080233302,-1000.0,0.00029997,3]
[312609298,1706080233442,-1000.0,0.00029997,3]
[312609299,1706080233452,-1000.0,0.00029997,3]
[312609300,1706080233461,-1000.0,0.00029997,3]
[312609301,1706080233471,-1000.0,0.00029997,3]
[312609302,1706080233480,-1000.0,0.00029997,3]
[312609303,1706080233489,-440.58350911,0.00029997,3]
[312609304,1706080233498,-1745.35263179,0.00029998,2]
[312609305,1706080233507,-246.85415565,0.00029998,2]
[312609306,1706080233516,-523.16784642,0.00029998,2]
[312609307,1706080233525,-230.81305057,0.00029998,2]
[312609308,1706080233534,-462.24755783,0.00029998,20]
[312609309,1706080233543,-326.08591641,0.00029998,2]
[312609310,1706080233553,-471.6419199,0.00029998,2]
[312609311,1706080233563,-505.61283718,0.00029998,2]
[312609312,1706080233572,-155.19377045,0.00029998,2]
[312609313,1706080233582,-155.71135633,0.00029998,2]
[312609314,1706080233591,-155.6799001,0.00029998,2]
[312609315,1706080233600,-2419.45866202,0.00029998,2]
[312609316,1706080233609,-1253.41868812,0.00029998,2]
[312609317,1706080233619,-2224.96312702,0.00029998,2]
[312609318,1706080233628,-4569.57367582,0.00029998,2]
[312609319,1706080233637,-155.13434742,0.00029998,2]
[312609320,1706080233646,-329.73461939,0.00029998,2]
[312609321,1706080233655,-3127.79666945,0.00029998,2]
[312609322,1706080233664,-1240.19166,0.00029998,2]
[312609323,1706080233673,-261.52031028,0.00029998,2]
[312609324,1706080233682,-223.68483373,0.00029998,2]
[312609325,1706080233691,-171.91221192,0.00029998,2]
[312609326,1706080233700,-527.75870848,0.00029998,2]
[312609327,1706080233709,-20902.38645894,0.00029998,2]
[312609328,1706080233718,-155.12037101,0.00029998,2]
[312609329,1706080233728,-2725.75858274,0.00029998,2]
[312609330,1706080233737,-522.11697668,0.00029998,2]
[312609331,1706080233746,-876.39189184,0.00029998,2]
[312609332,1706080233756,-155.13971064,0.00029998,2]
[312609333,1706080233765,-155.18765313,0.00029998,2]
[312609334,1706080233774,-2039.05381066,0.00029998,2]
[312609335,1706080233783,-254.47282032,0.00029998,2]
[312609336,1706080233792,-4784.81928958,0.00029998,2]
[312609337,1706080233801,-213.36770676,0.00029998,2]
[312609338,1706080233811,-1396.45827116,0.00029998,2]
[312609339,1706080233821,-175.57284081,0.00029998,2]
[312609340,1706080233831,-323.13090175,0.00029998,2]
[312609341,1706080233840,-262.95902957,0.00029998,2]
[312609342,1706080233854,-6763.78500734,0.00029999,2]
[312609343,1706080233897,-139234.85869816,0.0003,4]
[312609344,1706080233906,-2371.98806335,0.0003,2]
[312609345,1706080233915,-687.02930473,0.0003,4]
[312609346,1706080233924,-245.13461327,0.0003,3]
[312609347,1706080233934,-391.08920373,0.0003,2]
[312609348,1706080233944,-464.67563146,0.0003,6]
[312609349,1706080233954,-600.0,0.0003,2]
[312609350,1706080233963,-240.0,0.0003,2]
[312609351,1706080233973,-153.0,0.00030137,2]
[312609352,1706080233982,-158.305268,0.00030137,2]
[312609353,1706080233991,-174.913713,0.00030137,2]
[312609354,1706080234000,-157.894736,0.00030137,2]
[312609355,1706080234010,-193.33436688,0.00030999,4]
[312609356,1706080234019,-500.0,0.00030999,4]
[312609357,1706080234028,-500.0,0.00030999,4]
[312609358,1706080234037,-500.0,0.00030999,4]
[312609359,1706080234046,-526.37426026,0.00030999,4]
[312609360,1706080234055,-433.95310253,0.00030999,4]
[312609361,1706080234064,-169.42930633,0.00030999,4]
[312609362,1706080234073,-250.17020262,0.00030999,4]
[312609363,1706080234082,-500.0,0.00030999,4]
[312609364,1706080234091,-180.696184,0.00031,4]
[312609365,1706080234100,-592598.48586925,0.00031,2]
[312609366,1706080234108,-12129.64308105,0.00031436,4]
[312609367,1706080234117,-1274.78365779,0.00032458,2]
[312609368,1706080234126,-158.305268,0.00032877,2]
[312609369,1706080234136,-6226.1559501,0.00032877,2]
[312609370,1706080234144,-592.25305977,0.00035,2]
[312609371,1706080234154,-450.74064521,0.00035,14]
[312609372,1706080234164,-2090.58521615,0.00035,4]
[312609373,1706080234172,-155.08265337,0.00035,4]
[312609374,1706080234182,-500.128317,0.00035,7]
[312609375,1706080234192,-158.305268,0.00035616,2]
[312609376,1706080234202,-155.26829916,0.00036,4]
[312609377,1706080234212,-9116.9761504,0.0003715,5]
[312609378,1706080234221,-30846.30046437,0.000379,10]
[312609379,1706080234230,-158.305268,0.00038356,2]
[312609380,1706080234239,-987.90398352,0.00039466,4]
[312609381,1706080234249,-696.092453,0.00039621,2]
[312609382,1706080234258,-277.14654791,0.00039725,4]
[312609383,1706080234267,-1028.43870898,0.00039725,2]
[312609384,1706080234278,-154.86062544,0.00039725,4]
[312609385,1706080234288,-637.31,0.00039726,7]
[312609386,1706080234298,-500.0,0.00039726,7]
[312609387,1706080234308,-500.0,0.00039726,7]
[312609388,1706080234318,-500.0,0.00039726,7]
[312609389,1706080234327,-500.0,0.00039726,7]
[312609390,1706080234338,-500.0,0.00039726,7]
[312609391,1706080234347,-500.0,0.00039726,7]
[312609392,1706080234357,-502.48401567,0.00039726,7]
[312609393,1706080234367,-538.76242677,0.00039726,7]
[312609394,1706080234377,-500.0,0.00039726,7]
[312609395,1706080234386,-500.0,0.00039726,7]
[312609396,1706080234396,-500.0,0.00039726,7]
[312609397,1706080234405,-500.0,0.00039726,7]
[312609398,1706080234414,-500.0,0.00039726,7]
[312609399,1706080234423,-492.03071551,0.00039726,7]
[312609400,1706080234432,-500.0,0.00039726,7]
[312609401,1706080234441,-584.18,0.00039726,7]
[312609402,1706080234450,-500.0,0.00039726,7]
[312609403,1706080234459,-500.0,0.00039726,7]
[312609404,1706080234468,-500.0,0.00039726,7]
[312609405,1706080234477,-500.0,0.00039726,7]
[312609406,1706080234487,-500.0,0.00039726,7]
[312609407,1706080234495,-500.0,0.00039726,7]
[312609408,1706080234504,-500.0,0.00039726,7]
[312609409,1706080234514,-500.0,0.00039726,7]
[312609410,1706080234523,-500.0,0.00039726,2]
[312609411,1706080234533,-500.0,0.00039726,7]
[312609412,1706080234542,-500.0,0.00039726,7]
[312609413,1706080234552,-500.0,0.00039726,7]
[312609414,1706080234561,-500.0,0.00039726,7]
[312609415,1706080234570,-500.0,0.00039726,7]
[312609416,1706080234579,-500.0,0.00039726,7]
[312609417,1706080234588,-2329.6,0.00039726,7]
[312609418,1706080234597,-500.0,0.00039726,7]
[312609419,1706080234606,-454.00530172,0.00039726,7]
[312609420,1706080234615,-300.43093459,0.00039726,7]
[312609421,1706080234624,-500.0,0.00039726,7]
[312609422,1706080234633,-340.9251697,0.00039726,7]
[312609423,1706080234642,-500.0,0.00039726,7]
[312609424,1706080234651,-658.33,0.00039726,7]
[312609425,1706080234660,-221.37814357,0.00039726,2]
[312609426,1706080234669,-500.0,0.00039726,7]
[312609427,1706080234678,-500.0,0.00039726,7]
[312609428,1706080234687,-1024.73,0.00039726,7]
[312609429,1706080234696,-387.3379634,0.00039726,7]
[312609430,1706080234705,-500.0,0.00039726,7]
[312609431,1706080234714,-590.19,0.00039726,7]
[312609432,1706080234723,-500.0,0.00039726,7]
[312609433,1706080234734,-500.0,0.00039726,7]
[312609434,1706080234744,-515.49,0.00039726,7]
[312609435,1706080234753,-640.71121402,0.00039726,7]
[312609436,1706080234762,-1588.8,0.00039726,7]
[312609437,1706080234771,-510.73,0.00039726,7]
[312609438,1706080234780,-2366.23,0.00039726,7]
[312609439,1706080234790,-500.0,0.00039726,7]
[312609440,1706080234800,-500.0,0.00039726,7]
[312609441,1706080234809,-436.4558184,0.00039726,7]
[312609442,1706080234818,-1325.8,0.00039726,7]
[312609443,1706080234827,-574.04055209,0.00039726,7]
[312609585,1706080240994,-4332.72,0.00029989,3]
[312609587,1706080241003,-141.36944791,0.00039726,7]
[312609589,1706080241013,-500.0,0.00039726,7]
[312609591,1706080241022,-304.71610107,0.00039726,7]
[312609669,1706080243073,-745.04389893,0.00039726,7]
[312609670,1706080243083,-523.91,0.00039726,7]
[312609671,1706080243093,-500.0,0.00039726,7]
[312609672,1706080243103,-1225.0,0.00039726,7]
[312609673,1706080243113,-500.0,0.00039726,7]
[312609674,1706080243122,-500.0,0.00039726,7]
[312609675,1706080243132,-506.5,0.00039726,7]
[312609676,1706080243142,-1621.73,0.00039726,7]
[312609677,1706080243152,-500.0,0.00039726,7]
[312609678,1706080243162,-1216.0,0.00039726,7]
[312609679,1706080243171,-500.0,0.00039726,7]
[312609680,1706080243180,-1794.72812219,0.00039726,7]
[312609681,1706080243194,-518.325847,0.00039726,7]
[312609693,1706080246132,-301.85147671,0.00029988,2]
[312609694,1706080246143,-1244.4141873,0.00039726,7]
[312609712,1706081203101,-154.92177232,0.00027676,2]
[312609726,1706081433980,-462.74793695,0.00027571,20]
[312609727,1706081433990,-619.599095,0.00027572,2]
[312609728,1706081433999,-5210.1860001,0.00027572,2]
[312609729,1706081434008,-157.7467643,0.00027574,2]
[312609730,1706081434017,-6485.9946537,0.00027685,2]
[312609731,1706081434026,-499.60642467,0.00027686,2]
[312609732,1706081434037,-214.11703915,0.00027686,2]
[312609733,1706081434047,-305.35802587,0.00027686,2]
[312609734,1706081434057,-727.97271559,0.00029336,2]
[312609735,1706081434066,-228.82515688,0.0003,4]
[312609736,1706081434075,-2371.98806335,0.0003,2]
[312609737,1706081434084,-158.305268,0.00030137,2]
[312609738,1706081434093,-962.4711929,0.00033792,2]
[312609739,1706081434102,-727.97271559,0.00034336,2]
[312609740,1706081434111,-157.894736,0.00037804,2]
[312609741,1706081434120,-199.1966855,0.00039178,2]
[312609742,1706081434130,-727.97271559,0.00039336,2]
[312609743,1706081434139,-2707.42562247,0.00039598,5]
[312609744,1706081434148,-590.9,0.000396,30]
[312609745,1706081434158,-687.02930473,0.00039726,4]
[312609746,1706081434167,-537.03951848,0.00039726,4]
[312609747,1706081434176,-500.0,0.00039726,7]
[312609748,1706081434185,-500.0,0.00039726,7]
[312609749,1706081434194,-500.0,0.00039726,7]
[312609750,1706081434203,-500.0,0.00039726,7]
[312609751,1706081434212,-500.0,0.00039726,7]
[312609752,1706081434221,-500.0,0.00039726,7]
[312609753,1706081434230,-500.0,0.00039726,2]
[312609754,1706081434239,-500.0,0.00039726,7]
[312609755,1706081434248,-500.0,0.00039726,7]
[312609756,1706081434258,-500.0,0.00039726,7]
[312609757,1706081434268,-500.0,0.00039726,7]
[312609758,1706081434277,-500.0,0.00039726,7]
[312609759,1706081434287,-446.38955219,0.00039726,7]
[312609760,1706081434296,-500.0,0.00039726,7]
[312609761,1706081434305,-500.0,0.00039726,7]
[312609762,1706081434314,-500.0,0.00039726,7]
[312609763,1706081434323,-559.84,0.00039726,7]
[312609764,1706081434333,-500.0,0.00039726,7]
[312609765,1706081434342,-500.0,0.00039726,7]
[312609766,1706081434351,-1000.0,0.00039726,2]
[312609767,1706081434360,-2232.53,0.00039726,7]
[312609768,1706081434369,-500.0,0.00039726,7]
[312609769,1706081434378,-500.0,0.00039726,7]
[312609770,1706081434387,-500.0,0.00039726,7]
[312609771,1706081434396,-500.0,0.00039726,7]
[312609772,1706081434405,-500.0,0.00039726,7]
[312609773,1706081434414,-500.0,0.00039726,7]
[312609774,1706081434424,-630.9,0.00039726,7]
[312609775,1706081434433,-500.0,0.00039726,7]
[312609776,1706081434443,-500.0,0.00039726,7]
[312609777,1706081434453,-500.0,0.00039726,7]
[312609778,1706081434463,-280.79312943,0.00039726,7]
[312609779,1706081434472,-982.04,0.00039726,7]
[312609780,1706081434482,-565.6,0.00039726,7]
[312609781,1706081434492,-500.0,0.00039726,7]
[312609782,1706081434502,-426.6332942,0.00039726,7]
[312609783,1706081434512,-500.0,0.00039726,7]
[312609784,1706081434522,-1318.88,0.00039726,7]
[312609785,1706081434531,-610.76,0.00039726,7]
[312609786,1706081434540,-500.0,0.00039726,7]
[312609787,1706081434550,-500.0,0.00039726,7]
[312609788,1706081434766,-500.0,0.00039726,7]
[312609789,1706081434775,-500.0,0.00039726,7]
[312609790,1706081434785,-1522.6,0.00039726,7]
[312609791,1706081434794,-500.0,0.00039726,7]
[312609792,1706081434803,-500.0,0.00039726,7]
[312609793,1706081434813,-1006.02,0.00039726,7]
[312609794,1706081434822,-2267.63,0.00039726,7]
[312609795,1706081434842,-1173.95,0.00039726,7]
[312609796,1706081434853,-500.0,0.00039726,7]
[312609797,1706081434863,-500.0,0.00039726,7]
[312609798,1706081434873,-685.6,0.00039726,7]
[312609799,1706081434882,-502.08,0.00039726,7]
[312609800,1706081434892,-500.0,0.00039726,7]
[312609801,1706081434902,-500.0,0.00039726,7]
[312609802,1706081434911,-1554.15,0.00039726,7]
[312609803,1706081434921,-500.0,0.00039726,7]
[312609804,1706081434931,-1270.56,0.00039726,7]
[312609805,1706081434940,-1165.34,0.00039726,7]
[312609806,1706081434951,-500.0,0.00039726,7]
[312609807,1706081434960,-3608.18,0.00039726,7]
[312609808,1706081434970,-500.0,0.00039726,7]
[312609809,1706081434979,-626.06,0.00039726,7]
[312609810,1706081434989,-500.0,0.00039726,7]
[312609811,1706081434999,-500.0,0.00039726,7]
[312609812,1706081435009,-500.0,0.00039726,7]
[312609813,1706081435018,-503.21,0.00039726,7]
[312609814,1706081435028,-500.0,0.00039726,7]
[312609815,1706081435038,-500.0,0.00039726,7]
[312609816,1706081435048,-9457.52,0.00039726,7]
[312609817,1706081435058,-502.55179301,0.00039726,7]
[312609818,1706081435067,-500.0,0.00039726,7]
[312609819,1706081435077,-500.0,0.00039726,7]
[312609820,1706081435087,-500.0,0.00039726,7]
[312609821,1706081435097,-1292.5,0.00039726,7]
[312609822,1706081435106,-500.0,0.00039726,7]
[312609823,1706081435116,-500.0,0.00039726,7]
[312609824,1706081435126,-500.0,0.00039726,7]
[312609825,1706081435135,-1366.43,0.00039726,7]
[312609826,1706081435144,-618.76,0.00039726,7]
[312609827,1706081435153,-500.0,0.00039726,7]
[312609828,1706081435163,-500.0,0.00039726,7]
[312609829,1706081435172,-500.0,0.00039726,7]
[312609830,1706081435181,-263.10896995,0.000398,10]
[312609831,1706081435191,-437.87707699,0.0004,4]
[312609832,1706081435200,-500.0,0.0004,7]
[312609833,1706081435209,-500.0,0.0004,7]
[312609834,1706081435220,-500.0,0.0004,7]
[312609835,1706081435230,-500.0,0.0004,7]
[312609836,1706081435239,-500.0,0.0004,7]
[312609837,1706081435249,-500.0,0.0004,7]
[312609838,1706081435259,-311.94599302,0.0004,2]
[312609839,1706081435268,-500.0,0.0004,7]
[312609840,1706081435278,-500.0,0.0004,7]
[312609841,1706081435288,-500.0,0.0004,7]
[312609842,1706081435297,-500.0,0.0004,7]
[312609843,1706081435306,-500.0,0.0004,7]
[312609844,1706081435315,-500.0,0.0004,7]
[312609845,1706081435325,-500.0,0.0004,7]
[312609846,1706081435334,-500.0,0.0004,7]
[312609847,1706081435343,-559.84,0.0004,7]
[312609848,1706081435352,-500.0,0.0004,7]
[312609849,1706081435361,-500.0,0.0004,7]
[312609850,1706081435371,-2024.0,0.0004,2]
[312609851,1706081435380,-1000.0,0.0004,2]
[312609852,1706081435389,-2232.53,0.0004,7]
[312609853,1706081435399,-500.0,0.0004,7]
[312609854,1706081435408,-500.0,0.0004,7]
[312609855,1706081435417,-500.0,0.0004,7]
[312609856,1706081435427,-500.0,0.0004,7]
[312609857,1706081435437,-500.0,0.0004,7]
[312609858,1706081435447,-500.0,0.0004,7]
[312609859,1706081435457,-630.9,0.0004,7]
[312609860,1706081435466,-500.0,0.0004,7]
[312609861,1706081435476,-500.0,0.0004,7]
[312609862,1706081435485,-500.0,0.0004,7]
[312609863,1706081435495,-982.04,0.0004,7]
[312609864,1706081435507,-565.6,0.0004,7]
[312609865,1706081435517,-500.0,0.0004,7]
[312609866,1706081435526,-500.0,0.0004,7]
[312609867,1706081435535,-1318.88,0.0004,7]
[312609868,1706081435546,-610.76,0.0004,7]
[312609869,1706081435556,-500.0,0.0004,7]
[312609870,1706081435566,-500.0,0.0004,7]
[312609871,1706081435578,-500.0,0.0004,7]
[312609872,1706081435588,-500.0,0.0004,7]
[312609873,1706081435598,-1522.6,0.0004,7]
[312609874,1706081435608,-500.0,0.0004,7]
[312609875,1706081435618,-500.0,0.0004,7]
[312609876,1706081435629,-1006.02,0.0004,7]
[312609877,1706081435640,-2267.63,0.0004,7]
[312609878,1706081435650,-1173.95,0.0004,7]
[312609879,1706081435660,-500.0,0.0004,7]
[312609880,1706081435671,-269.20242237,0.0004,7]
[312609881,1706081435680,-685.6,0.0004,7]
[312609882,1706081435691,-502.08,0.0004,7]
[312609883,1706081435701,-500.0,0.0004,7]
[312609884,1706081435711,-500.0,0.0004,7]
[312609885,1706081435721,-1554.15,0.0004,7]
[312609886,1706081435733,-500.0,0.0004,7]
[312609887,1706081435744,-1270.56,0.0004,7]
[312609888,1706081435761,-1165.34,0.0004,7]
[312609889,1706081435771,-500.0,0.0004,7]
[312609890,1706081435780,-3608.18,0.0004,7]
[312609891,1706081435790,-500.0,0.0004,7]
[312609892,1706081435800,-626.06,0.0004,7]
[312609893,1706081435810,-500.0,0.0004,7]
[312609894,1706081435819,-500.0,0.0004,7]
[312609895,1706081435829,-327.99766299,0.0004,7]
[312609896,1706081435838,-503.21,0.0004,7]
[312609897,1706081435848,-470.34968323,0.0004,7]
[312609898,1706081435858,-500.0,0.0004,7]
[312609899,1706081435867,-9457.52,0.0004,7]
[312609900,1706081435876,-500.0,0.0004,7]
[312609901,1706081435887,-500.0,0.0004,7]
[312609902,1706081435897,-500.0,0.0004,7]
[312609903,1706081435907,-1292.5,0.0004,7]
[312609904,1706081435917,-500.0,0.0004,7]
[312609905,1706081435927,-500.0,0.0004,7]
[312609906,1706081435937,-500.0,0.0004,7]
[312609907,1706081435947,-600.0,0.0004,30]
[312609908,1706081435957,-1366.43,0.0004,7]
[312609909,1706081435966,-618.76,0.0004,7]
[312609910,1706081435976,-179.05963504,0.0004,7]
[312609911,1706081435987,-500.0,0.0004,7]
[312609912,1706081435997,-500.0,0.0004,7]
[312609913,1706081436015,-213.43652609,0.00040271,4]
[312609914,1706081436025,-500.0,0.00040273,7]
[312609915,1706081436038,-500.0,0.00040273,7]
[312609916,1706081436048,-500.0,0.00040273,7]
[312609917,1706081436059,-500.0,0.00040273,7]
[312609918,1706081436069,-500.0,0.00040273,7]
[312609919,1706081436079,-500.0,0.00040273,7]
[312609920,1706081436090,-500.0,0.00040273,7]
[312609921,1706081436100,-500.0,0.00040273,7]
[312609922,1706081436110,-500.0,0.00040273,7]
[312609923,1706081436119,-500.0,0.00040273,7]
[312609924,1706081436128,-500.0,0.00040273,7]
[312609925,1706081436138,-500.0,0.00040273,7]
[312609926,1706081436148,-500.0,0.00040273,7]
[312609927,1706081436158,-500.0,0.00040273,7]
[312609928,1706081436167,-559.84,0.00040273,7]
[312609929,1706081436177,-500.0,0.00040273,7]
[312609930,1706081436186,-500.0,0.00040273,7]
[312609931,1706081436196,-1000.0,0.00040273,2]
[312609932,1706081436206,-2232.53,0.00040273,7]
[312609933,1706081436217,-500.0,0.00040273,7]
[312609934,1706081436227,-500.0,0.00040273,7]
[312609935,1706081436238,-500.0,0.00040273,7]
[312609936,1706081436248,-500.0,0.00040273,7]
[312609937,1706081436265,-500.0,0.00040273,7]
[312609938,1706081436276,-500.0,0.00040273,7]
[312609939,1706081436285,-630.9,0.00040273,7]
[312609940,1706081436295,-500.0,0.00040273,7]
[312609941,1706081436305,-500.0,0.00040273,7]
[312609942,1706081436314,-500.0,0.00040273,7]
[312609943,1706081436324,-982.04,0.00040273,7]
[312609944,1706081436334,-565.6,0.00040273,7]
[312609945,1706081436344,-500.0,0.00040273,7]
[312609946,1706081436353,-500.0,0.00040273,7]
[312609947,1706081436362,-1318.88,0.00040273,7]
[312609948,1706081436372,-610.76,0.00040273,7]
[312609949,1706081436381,-500.0,0.00040273,7]
[312609950,1706081436391,-500.0,0.00040273,7]
[312609951,1706081436400,-500.0,0.00040273,7]
[312609952,1706081436409,-500.0,0.00040273,7]
[312609953,1706081436419,-1522.6,0.00040273,7]
[312609954,1706081436428,-500.0,0.00040273,7]
[312609955,1706081436438,-500.0,0.00040273,7]
[312609956,1706081436447,-1006.02,0.00040273,7]
[312609957,1706081436456,-2267.63,0.00040273,7]
[312609958,1706081436465,-1173.95,0.00040273,7]
[312609959,1706081436475,-500.0,0.00040273,7]
[312609960,1706081436484,-685.6,0.00040273,7]
[312609961,1706081436493,-502.08,0.00040273,7]
[312609962,1706081436507,-500.0,0.00040273,7]
[312609963,1706081436516,-500.0,0.00040273,7]
[312609964,1706081436525,-1554.15,0.00040273,7]
[312609965,1706081436534,-500.0,0.00040273,7]
[312609966,1706081436544,-1270.56,0.00040273,7]
[312609967,1706081436553,-1165.34,0.00040273,7]
[312609968,1706081436562,-3608.18,0.00040273,7]
[312609969,1706081436686,-500.0,0.00040273,7]
[312609970,1706081436715,-500.0,0.00040273,7]
[312609971,1706081436724,-626.06,0.00040273,7]
[312609972,1706081436733,-500.0,0.00040273,7]
[312609973,1706081436743,-500.0,0.00040273,7]
[312609974,1706081436755,-503.21,0.00040273,7]